Workbook

Sheet Инструкция
A1: № | B1: Включены следующие производители оборудования | C1: Дата обновления базы номенклатуры | D1: Дата обновления базы цены
A2: 1 | B2: RITTAL (2015.01.13 Smart КП январь_12012015)
A3: 2 | B3: EATON (EATON Прайс-лист 01012015 партнер)
A4: 3 | B4: WAGO (Net Price 2015.01.16_Avtomatika Privodnaya Technika_for customer)
A5: 4 | B5: WIENTEK (Weintek_13_08_2014_y e)
A6: 5 | B6: ABB (двигатели/привода) (АББ Прайс-лист_январь 2015)
A7: 6 | B7: ABB (низковольтное оборудование) (АББ Прайс-лист_январь 2015)
A8: 7 | B8: SIEMENS
A9: 8 | B9: ProVento
A10: 9 | B10: Pfannenberg (ПФАНЕНБЕРГ new price_010314 v1)
A11: 10 | B11: Другие произоводители:
B26: Важно, формат ячейки артикула должен быть числовым

Sheet Рабочий лист
H1: Розничная цена без НДС | J1: Оборудование минус склад (без НДС) = | L1: =L2-SUM(V6:V54) -> 5242.95 | M1: =$M$2-SUM(K6:K54) -> 433068.91 | N1: Запас на усушку, % | O1: 10 | P1: =(M2+M1)*O1/100 -> 86613.782 | Q1: Работы для клиента = | S1: =SUM(S62:S77) -> 0
B2: № п/п | C2: Наименование | D2: Артикул | E2: Производитель | F2: Заказ, шт | G2: Склад, шт | H2: EUR/USD | I2: 1.148819 | J2: Цена оборудование (без НДС) = | L2: =SUM(U6:U54) -> 5242.95 | M2: =SUM(M5:M56) -> 433068.91 | N2: ТЗР + запас, суммарный процент (распределение в оборудование) | O2: 25 | P2: =M2*(O2)/100 -> 108267.2275 | Q2: Оборуд. для клиента = | S2: =S4-S1 -> 584641.44
H3: EURO | I3: РУБЛЬ | J3: Скидка, % | K3: Цена с НДС (18%), скидкой, руб | M3: Стоимость НАША, в рублях с НДС | O3: Оборуд. Рентаб. , % Работы | P3: Итоговый коэффициент, % | Q3: Цена клиент, руб без НДС, за шт. | R3: Цена клиент, руб с НДС, за шт. | S3: Стоимость КЛИЕНТА, в рублях с НДС
H4: 70 | K4: Склад | L4: Закуп, шт | M4: =SUM(M5:M79) -> 433068.91 | O4: 25 | P4: =M1*O4/100 -> 108267.2275 | S4: =SUM(S5:S77) -> 584641.44
B5: 1 | C5: Нулевая поставка | F5: 1 | H5: 100 | I5: 1 | L5: 1.18 | M5: =L5*F5 -> 1.18 | N5: =((($D$55*1.18+100)/100)*(($D$56*1.18+100)/100)-1)*100 -> 0 | O5: =$O$2 -> 25 | P5: =O5+N5+$O$1 -> 35 | Q5: =CEILING(((100+P5)/100*I5)*((100-J5)/100),0.01) -> 1.35 | R5: =CEILING(Q5*1.18,0.01) -> 1.6 | S5: =R5*(F5-F5) -> 0
B6: =B5+1 -> 2 | C6: =INDEX(Прайс!D:D,MATCH(D6,Прайс!B:B,0)) -> Непредвиденное | D6: Непредвиденное | E6: =INDEX(Прайс!$E:$E,MATCH($D6,Прайс!$B:$B,0)) -> 0 | H6: =INDEX(Прайс!H:H,MATCH(D6,Прайс!B:B,0)) -> 100 | I6: =H6*$H$4 -> 7000 | J6: =INDEX(Прайс!I:I,MATCH(D6,Прайс!B:B,0)) -> 0 | K6: =CEILING(CEILING($H6*$H$4*(100-$J6)/100,0.01)*1.18,0.01)*$G6 -> 0 | L6: =CEILING(CEILING(I6*(100-J6)/100,0.01)*1.18,0.01) -> 8260 | M6: =L6*F6 -> 0 | N6: 0 | O6: 25 | P6: =O6+N6+$O$1 -> 35 | Q6: =CEILING(((100+P6)/100*I6)*((100-J6)/100),0.01) -> 9450 | R6: =CEILING(Q6*1.18,0.01) -> 11151 | S6: =R6*F6 -> 0 | U6: =F6*H6*CEILING((100-J6)/100,0.01) -> 0 | V6: =G6*H6*CEILING((100-J6)/100,0.01) -> 0
B7: =B6+1 -> 3 | C7: =INDEX(Прайс!D:D,MATCH(D7,Прайс!B:B,0)) -> SIMATIC S7-1200, КОМПАКТНОЕ ЦПУ CPU 1214C DC/DC/DC, ВСТРОЕННЫЕ ВХОДЫ/ВЫХОДЫ: 14 DI =24 В; 10 DO =24 В; 2 AI =0 - 10 В, БЛОК ПИТАНИЯ: =20.4 - 28.8 В, ПАМЯТЬ ПРОГРАММЫ/ДАННЫХ: 75 КБ | D7: 6ES7214-1AG40-0XB0 | E7: =INDEX(Прайс!$E:$E,MATCH($D7,Прайс!$B:$B,0)) -> Siemens | F7: 1 | H7: =INDEX(Прайс!H:H,MATCH(D7,Прайс!B:B,0)) -> 234.29 | I7: 16400.3 | J7: =INDEX(Прайс!I:I,MATCH(D7,Прайс!B:B,0)) -> 0 | K7: 0 | L7: 19352.36 | M7: 19352.36 | N7: 0 | O7: 25 | P7: 35 | Q7: 22140.41 | R7: 26125.69 | S7: 26125.69 | U7: =F7*H7*CEILING((100-J7)/100,0.01) -> 234.29 | V7: =G7*H7*CEILING((100-J7)/100,0.01) -> 0
B8: 4 | C8: =INDEX(Прайс!D:D,MATCH(D8,Прайс!B:B,0)) -> SIMATIC S7-1200, МОДУЛЬ ДИСКРЕТНОГО ВВОДА SM 1221, 8DI, =24 В, ВХОДЫ SINK/SOURCE | D8: 6ES7221-1BF32-0XB0 | E8: =INDEX(Прайс!$E:$E,MATCH($D8,Прайс!$B:$B,0)) -> Siemens | F8: 1 | H8: =INDEX(Прайс!H:H,MATCH(D8,Прайс!B:B,0)) -> 67.74 | I8: 4741.8 | J8: =INDEX(Прайс!I:I,MATCH(D8,Прайс!B:B,0)) -> 0 | K8: 0 | L8: 5595.33 | M8: 5595.33 | N8: 0 | O8: 25 | P8: 35 | Q8: 6401.43 | R8: 7553.69 | S8: 7553.69 | U8: 67.74 | V8: 0
B9: 5 | C9: =INDEX(Прайс!D:D,MATCH(D9,Прайс!B:B,0)) -> SIMATIC S7-1200, КОММУНИКАЦИОННЫЙ МОДУЛЬ CM 1241, RS422/485, 9-ПОЛЮСНЫЙ РАЗЪЁМ SUB D (ВИЛКА), СВОБОДНО-ПРОГРАММИРУЕМЫЙ ПОРТ С ПОДДЕРЖКОЙ ТЕЛЕГРАММ | D9: 6ES7241-1CH32-0XB0 | E9: =INDEX(Прайс!$E:$E,MATCH($D9,Прайс!$B:$B,0)) -> Siemens | H9: =INDEX(Прайс!H:H,MATCH(D9,Прайс!B:B,0)) -> 79.35 | I9: 5554.5 | J9: =INDEX(Прайс!I:I,MATCH(D9,Прайс!B:B,0)) -> 0 | K9: 0 | L9: 6554.31 | M9: 0 | N9: 0 | O9: 25 | P9: 35 | Q9: 7498.58 | R9: 8848.33 | S9: 0 | U9: 0 | V9: 0
B10: 6 | C10: =INDEX(Прайс!D:D,MATCH(D10,Прайс!B:B,0)) -> ВАКУУМНЫЙ КОНТАКТОР, 250КВТ/400V/AC-3, AC/DC-НОМИНАЛЬНОЕ ПИТАЮЩЕЕ НАПРЯЖЕНИЕ УПРАВЛЕНИЯ 220-240В UCБЛОК-КОНТАКТЫ 2НО+2НЗ 3-Х ПОЛЮСНЫЙ, ТИПОРАЗМЕР S12 ШИННОЕ ПРИСОЕДИНЕНИЕ ПРИВОД: ОБЫЧНЫЙ | D10: 3RT1276-6AP36 | E10: =INDEX(Прайс!$E:$E,MATCH($D10,Прайс!$B:$B,0)) -> Siemens | H10: =INDEX(Прайс!H:H,MATCH(D10,Прайс!B:B,0)) -> 1269.07 | I10: 88834.9 | J10: =INDEX(Прайс!I:I,MATCH(D10,Прайс!B:B,0)) -> 0 | K10: 0 | L10: 104825.19 | M10: 0 | N10: 0 | O10: 25 | P10: 35 | Q10: 119927.12 | R10: 141514.01 | S10: 0 | U10: 0 | V10: 0
B11: 7 | C11: =INDEX(Прайс!D:D,MATCH(D11,Прайс!B:B,0)) -> КОНТАКТОР 250КВТ/400V/AC-3, AC/DC-НОМИНАЛЬНОЕ ПИТАЮЩЕЕ НАПРЯЖЕНИЕ УПРАВЛЕНИЯ 220-240В UCБЛОК-КОНТАКТЫ 2НО+2НЗ 3-Х ПОЛЮСНЫЙ, ТИПОРАЗМЕР S12 ШИННОЕ ПРИСОЕДИНЕНИЕ ПРИВОД: ОБЫЧНЫЙ | D11: 3RT1076-6AP36 | E11: =INDEX(Прайс!$E:$E,MATCH($D11,Прайс!$B:$B,0)) -> Siemens | H11: =INDEX(Прайс!H:H,MATCH(D11,Прайс!B:B,0)) -> 916.97 | I11: =H11*$H$4 -> 64187.9 | J11: =INDEX(Прайс!I:I,MATCH(D11,Прайс!B:B,0)) -> 0 | K11: 0 | L11: =CEILING(CEILING(I11*(100-J11)/100,0.01)*1.18,0.01) -> 75741.73 | M11: 0 | N11: 0 | O11: 25 | P11: 35 | Q11: 86653.67 | R11: 102251.34 | S11: =R11*F11 -> 0 | U11: 0 | V11: 0
B12: 8 | C12: =INDEX(Прайс!D:D,MATCH(D12,Прайс!B:B,0)) -> АВТОМАТИЧЕСКИЙ ВЫКЛЮЧАТЕЛЬ 3VT1 СТАНДАРТНАЯ ОТКЛ. СПОСОБНОСТЬ ICU=25KA, 415V AC 3-ПОЛ.; STARTER COMBINATION РАСЦЕПИТЕЛЬ TM, LIN IN= 63A RATED CURRENT II= 315... 630A, SHORT-CIRCUIT PROTECTION W/O AUXILIARY TRIP UNIT W/O AUXILIARY/ALARM SWITCH WITHOUT AUXIL | D12: 3VT1706-2DB36-0AA0 | E12: =INDEX(Прайс!$E:$E,MATCH($D12,Прайс!$B:$B,0)) -> Siemens | H12: =INDEX(Прайс!H:H,MATCH(D12,Прайс!B:B,0)) -> 53.67 | I12: =H12*$H$4 -> 3756.9 | J12: =INDEX(Прайс!I:I,MATCH(D12,Прайс!B:B,0)) -> 0 | K12: 0 | L12: =CEILING(CEILING(I12*(100-J12)/100,0.01)*1.18,0.01) -> 4433.15 | M12: 0 | N12: 0 | O12: 25 | P12: 35 | Q12: 5071.82 | R12: 5984.75 | S12: 0 | U12: 0 | V12: 0
B13: 9 | C13: =INDEX(Прайс!D:D,MATCH(D13,Прайс!B:B,0)) -> ВЫКЛЮЧАТЕЛЬ-РАЗЪЕДИНИТЕЛЬ 1250A, ТР.5, 3-ПОЛ ФРОНТ.УПР. СЛЕВА БАЗ.БЛОК БЕЗ РУЧКИ ПЛОСКИЕ КЛЕММЫ | D13: 3KD5230-0RE10-0 | E13: =INDEX(Прайс!$E:$E,MATCH($D13,Прайс!$B:$B,0)) -> Siemens | F13: 6 | H13: =INDEX(Прайс!H:H,MATCH(D13,Прайс!B:B,0)) -> 743.12 | I13: 52018.4 | J13: =INDEX(Прайс!I:I,MATCH(D13,Прайс!B:B,0)) -> 0 | K13: 0 | L13: 61381.72 | M13: 368290.32 | N13: 0 | O13: 25 | P13: 35 | Q13: 70224.84 | R13: 82865.32 | S13: 497191.92 | U13: 4458.72 | V13: 0
B14: 10 | C14: =INDEX(Прайс!D:D,MATCH(D14,Прайс!B:B,0)) -> РАСЦЕПИТЕЛЬ МАКС.ТОКА ЭЛЕКТР. VT630 3-ПОЛ.,MOTOR/TRANSF. PROTECT. ETU MPS, LI IR= 250... 630A, OVERLOAD PROTECTION IRM= 3... 9KA SHORT-CIRCUIT PROTECTION, SCREW TERMINAL CONNECTIONS IN SCOPE OF SUPPLY OF SWITCHING UNIT | D14: 3VT9363-6AS00 | E14: =INDEX(Прайс!$E:$E,MATCH($D14,Прайс!$B:$B,0)) -> Siemens | H14: =INDEX(Прайс!H:H,MATCH(D14,Прайс!B:B,0)) -> 300.33 | I14: =H14*$H$4 -> 21023.1 | J14: =INDEX(Прайс!I:I,MATCH(D14,Прайс!B:B,0)) -> 0 | K14: 0 | L14: =CEILING(CEILING(I14*(100-J14)/100,0.01)*1.18,0.01) -> 24807.26 | M14: =L14*F14 -> 0 | N14: 0 | O14: 25 | P14: =O14+N14+$O$1 -> 35 | Q14: =CEILING(((100+P14)/100*I14)*((100-J14)/100),0.01) -> 28381.19 | R14: =CEILING(Q14*1.18,0.01) -> 33489.81 | S14: =R14*F14 -> 0 | U14: 0 | V14: 0
B15: 11 | C15: =INDEX(Прайс!D:D,MATCH(D15,Прайс!B:B,0)) -> АВТОМАТИЧЕСКИЙ ВЫКЛЮЧАТЕЛЬ 3VT3 СТАНДАРТНАЯ ОТКЛ. СПОСОБНОСТЬ ICU=36KA, 415V AC 3-ПОЛ.; АВТОМАТИЧЕСКИЙ ВЫКЛЮЧАТЕЛЬ W/O ELECTRONIC TRIP UNIT W/O AUXILIARY TRIP UNIT W/O AUXILIARY/ALARM SWITCH WITHOUT AUXILIARY RELEASE WITHOUT AUXILIARY/ALARM SWITCH OHNE HIL | D15: 3VT3763-2AA36-0AA0 | E15: =INDEX(Прайс!$E:$E,MATCH($D15,Прайс!$B:$B,0)) -> Siemens | F15: 2 | H15: =INDEX(Прайс!H:H,MATCH(D15,Прайс!B:B,0)) -> 241.1 | I15: 16877 | J15: =INDEX(Прайс!I:I,MATCH(D15,Прайс!B:B,0)) -> 0 | K15: 0 | L15: 19914.86 | M15: 39829.72 | N15: 0 | O15: 25 | P15: 35 | Q15: 22783.95 | R15: 26885.07 | S15: 53770.14 | U15: 482.2 | V15: 0
B16: 12 | C16: =INDEX(Прайс!D:D,MATCH(D16,Прайс!B:B,0)) -> 0 | E16: =INDEX(Прайс!$E:$E,MATCH($D16,Прайс!$B:$B,0)) -> 0 | H16: =INDEX(Прайс!H:H,MATCH(D16,Прайс!B:B,0)) -> 0 | I16: 0 | J16: =INDEX(Прайс!I:I,MATCH(D16,Прайс!B:B,0)) -> 0 | K16: 0 | L16: 0 | M16: 0 | N16: 0 | O16: 25 | P16: 35 | Q16: 0 | R16: 0 | S16: 0 | U16: 0 | V16: 0
B17: 13 | C17: =INDEX(Прайс!D:D,MATCH(D17,Прайс!B:B,0)) -> 0 | E17: =INDEX(Прайс!$E:$E,MATCH($D17,Прайс!$B:$B,0)) -> 0 | F17: 3 | H17: =INDEX(Прайс!H:H,MATCH(D17,Прайс!B:B,0)) -> 0 | I17: 0 | J17: =INDEX(Прайс!I:I,MATCH(D17,Прайс!B:B,0)) -> 0 | K17: 0 | L17: 0 | M17: 0 | N17: 0 | O17: 25 | P17: 35 | Q17: 0 | R17: 0 | S17: 0 | U17: 0 | V17: 0
B18: 14 | C18: =INDEX(Прайс!D:D,MATCH(D18,Прайс!B:B,0)) -> 0 | E18: =INDEX(Прайс!$E:$E,MATCH($D18,Прайс!$B:$B,0)) -> 0 | F18: 2 | H18: =INDEX(Прайс!H:H,MATCH(D18,Прайс!B:B,0)) -> 0 | I18: 0 | J18: =INDEX(Прайс!I:I,MATCH(D18,Прайс!B:B,0)) -> 0 | K18: 0 | L18: 0 | M18: 0 | N18: 0 | O18: 25 | P18: 35 | Q18: 0 | R18: 0 | S18: 0 | U18: 0 | V18: 0
B19: 15 | C19: =INDEX(Прайс!D:D,MATCH(D19,Прайс!B:B,0)) -> 0 | E19: =INDEX(Прайс!$E:$E,MATCH($D19,Прайс!$B:$B,0)) -> 0 | F19: 2 | H19: =INDEX(Прайс!H:H,MATCH(D19,Прайс!B:B,0)) -> 0 | I19: 0 | J19: =INDEX(Прайс!I:I,MATCH(D19,Прайс!B:B,0)) -> 0 | K19: 0 | L19: 0 | M19: 0 | N19: 0 | O19: 25 | P19: 35 | Q19: 0 | R19: 0 | S19: 0 | U19: 0 | V19: 0
B20: 16 | C20: =INDEX(Прайс!D:D,MATCH(D20,Прайс!B:B,0)) -> 0 | E20: =INDEX(Прайс!$E:$E,MATCH($D20,Прайс!$B:$B,0)) -> 0 | F20: 3 | H20: =INDEX(Прайс!H:H,MATCH(D20,Прайс!B:B,0)) -> 0 | I20: 0 | J20: =INDEX(Прайс!I:I,MATCH(D20,Прайс!B:B,0)) -> 0 | K20: 0 | L20: 0 | M20: 0 | N20: 0 | O20: 25 | P20: 35 | Q20: 0 | R20: 0 | S20: 0 | U20: 0 | V20: 0
B21: 17 | C21: =INDEX(Прайс!D:D,MATCH(D21,Прайс!B:B,0)) -> 0 | E21: =INDEX(Прайс!$E:$E,MATCH($D21,Прайс!$B:$B,0)) -> 0 | F21: 3 | H21: =INDEX(Прайс!H:H,MATCH(D21,Прайс!B:B,0)) -> 0 | I21: 0 | J21: =INDEX(Прайс!I:I,MATCH(D21,Прайс!B:B,0)) -> 0 | K21: 0 | L21: 0 | M21: 0 | N21: 0 | O21: 25 | P21: 35 | Q21: 0 | R21: 0 | S21: 0 | U21: 0 | V21: 0
B22: 18 | C22: =INDEX(Прайс!D:D,MATCH(D22,Прайс!B:B,0)) -> 0 | E22: =INDEX(Прайс!$E:$E,MATCH($D22,Прайс!$B:$B,0)) -> 0 | F22: 3 | H22: =INDEX(Прайс!H:H,MATCH(D22,Прайс!B:B,0)) -> 0 | I22: 0 | J22: =INDEX(Прайс!I:I,MATCH(D22,Прайс!B:B,0)) -> 0 | K22: 0 | L22: 0 | M22: 0 | N22: 0 | O22: 25 | P22: 35 | Q22: 0 | R22: 0 | S22: 0 | U22: 0 | V22: 0
B23: 19 | C23: =INDEX(Прайс!D:D,MATCH(D23,Прайс!B:B,0)) -> 0 | E23: =INDEX(Прайс!$E:$E,MATCH($D23,Прайс!$B:$B,0)) -> 0 | H23: =INDEX(Прайс!H:H,MATCH(D23,Прайс!B:B,0)) -> 0 | I23: 0 | J23: =INDEX(Прайс!I:I,MATCH(D23,Прайс!B:B,0)) -> 0 | K23: 0 | L23: 0 | M23: 0 | N23: 0 | O23: 25 | P23: 35 | Q23: 0 | R23: 0 | S23: 0 | U23: 0 | V23: 0
B24: 20 | C24: =INDEX(Прайс!D:D,MATCH(D24,Прайс!B:B,0)) -> 0 | E24: =INDEX(Прайс!$E:$E,MATCH($D24,Прайс!$B:$B,0)) -> 0 | H24: =INDEX(Прайс!H:H,MATCH(D24,Прайс!B:B,0)) -> 0 | I24: 0 | J24: =INDEX(Прайс!I:I,MATCH(D24,Прайс!B:B,0)) -> 0 | K24: 0 | L24: 0 | M24: 0 | N24: 0 | O24: 25 | P24: 35 | Q24: 0 | R24: 0 | S24: 0 | U24: 0 | V24: 0
B25: 21 | C25: =INDEX(Прайс!D:D,MATCH(D25,Прайс!B:B,0)) -> 0 | E25: =INDEX(Прайс!$E:$E,MATCH($D25,Прайс!$B:$B,0)) -> 0 | H25: =INDEX(Прайс!H:H,MATCH(D25,Прайс!B:B,0)) -> 0 | I25: 0 | J25: =INDEX(Прайс!I:I,MATCH(D25,Прайс!B:B,0)) -> 0 | K25: 0 | L25: 0 | M25: 0 | N25: 0 | O25: 25 | P25: 35 | Q25: 0 | R25: 0 | S25: 0 | U25: 0 | V25: 0
B26: 22 | C26: =INDEX(Прайс!D:D,MATCH(D26,Прайс!B:B,0)) -> 0 | E26: =INDEX(Прайс!$E:$E,MATCH($D26,Прайс!$B:$B,0)) -> 0 | F26: 1 | H26: =INDEX(Прайс!H:H,MATCH(D26,Прайс!B:B,0)) -> 0 | I26: 0 | J26: =INDEX(Прайс!I:I,MATCH(D26,Прайс!B:B,0)) -> 0 | K26: 0 | L26: 0 | M26: 0 | N26: 0 | O26: 25 | P26: 35 | Q26: 0 | R26: 0 | S26: 0 | U26: 0 | V26: 0
B27: 23 | C27: =INDEX(Прайс!D:D,MATCH(D27,Прайс!B:B,0)) -> 0 | E27: =INDEX(Прайс!$E:$E,MATCH($D27,Прайс!$B:$B,0)) -> 0 | F27: 1 | H27: =INDEX(Прайс!H:H,MATCH(D27,Прайс!B:B,0)) -> 0 | I27: 0 | J27: =INDEX(Прайс!I:I,MATCH(D27,Прайс!B:B,0)) -> 0 | K27: 0 | L27: 0 | M27: 0 | N27: 0 | O27: 25 | P27: 35 | Q27: 0 | R27: 0 | S27: 0 | U27: 0 | V27: 0
B28: 24 | C28: =INDEX(Прайс!D:D,MATCH(D28,Прайс!B:B,0)) -> 0 | E28: =INDEX(Прайс!$E:$E,MATCH($D28,Прайс!$B:$B,0)) -> 0 | F28: 1 | H28: =INDEX(Прайс!H:H,MATCH(D28,Прайс!B:B,0)) -> 0 | I28: 0 | J28: =INDEX(Прайс!I:I,MATCH(D28,Прайс!B:B,0)) -> 0 | K28: 0 | L28: 0 | M28: 0 | N28: 0 | O28: 25 | P28: 35 | Q28: 0 | R28: 0 | S28: 0 | U28: 0 | V28: 0
B29: 25 | C29: =INDEX(Прайс!D:D,MATCH(D29,Прайс!B:B,0)) -> 0 | E29: =INDEX(Прайс!$E:$E,MATCH($D29,Прайс!$B:$B,0)) -> 0 | H29: =INDEX(Прайс!H:H,MATCH(D29,Прайс!B:B,0)) -> 0 | I29: 0 | J29: =INDEX(Прайс!I:I,MATCH(D29,Прайс!B:B,0)) -> 0 | K29: 0 | L29: 0 | M29: 0 | N29: 0 | O29: 25 | P29: 35 | Q29: 0 | R29: 0 | S29: 0 | U29: 0 | V29: 0
B30: 26 | C30: =INDEX(Прайс!D:D,MATCH(D30,Прайс!B:B,0)) -> 0 | E30: =INDEX(Прайс!$E:$E,MATCH($D30,Прайс!$B:$B,0)) -> 0 | H30: =INDEX(Прайс!H:H,MATCH(D30,Прайс!B:B,0)) -> 0 | I30: 0 | J30: =INDEX(Прайс!I:I,MATCH(D30,Прайс!B:B,0)) -> 0 | K30: 0 | L30: 0 | M30: 0 | N30: 0 | O30: 25 | P30: 35 | Q30: 0 | R30: 0 | S30: 0 | U30: 0 | V30: 0
B31: 27 | C31: =INDEX(Прайс!D:D,MATCH(D31,Прайс!B:B,0)) -> 0 | E31: =INDEX(Прайс!$E:$E,MATCH($D31,Прайс!$B:$B,0)) -> 0 | H31: =INDEX(Прайс!H:H,MATCH(D31,Прайс!B:B,0)) -> 0 | I31: 0 | J31: =INDEX(Прайс!I:I,MATCH(D31,Прайс!B:B,0)) -> 0 | K31: 0 | L31: 0 | M31: 0 | N31: 0 | O31: 25 | P31: 35 | Q31: 0 | R31: 0 | S31: 0 | U31: 0 | V31: 0
B32: 28 | C32: =INDEX(Прайс!D:D,MATCH(D32,Прайс!B:B,0)) -> 0 | E32: =INDEX(Прайс!$E:$E,MATCH($D32,Прайс!$B:$B,0)) -> 0 | H32: =INDEX(Прайс!H:H,MATCH(D32,Прайс!B:B,0)) -> 0 | I32: 0 | J32: =INDEX(Прайс!I:I,MATCH(D32,Прайс!B:B,0)) -> 0 | K32: 0 | L32: 0 | M32: 0 | N32: 0 | O32: 25 | P32: 35 | Q32: 0 | R32: 0 | S32: 0 | U32: 0 | V32: 0
B33: 29 | C33: =INDEX(Прайс!D:D,MATCH(D33,Прайс!B:B,0)) -> 0 | E33: =INDEX(Прайс!$E:$E,MATCH($D33,Прайс!$B:$B,0)) -> 0 | H33: =INDEX(Прайс!H:H,MATCH(D33,Прайс!B:B,0)) -> 0 | I33: 0 | J33: =INDEX(Прайс!I:I,MATCH(D33,Прайс!B:B,0)) -> 0 | K33: 0 | L33: 0 | M33: 0 | N33: 0 | O33: 25 | P33: 35 | Q33: 0 | R33: 0 | S33: 0 | U33: 0 | V33: 0
B34: 30 | C34: =INDEX(Прайс!D:D,MATCH(D34,Прайс!B:B,0)) -> 0 | E34: =INDEX(Прайс!$E:$E,MATCH($D34,Прайс!$B:$B,0)) -> 0 | H34: =INDEX(Прайс!H:H,MATCH(D34,Прайс!B:B,0)) -> 0 | I34: 0 | J34: =INDEX(Прайс!I:I,MATCH(D34,Прайс!B:B,0)) -> 0 | K34: 0 | L34: 0 | M34: 0 | N34: 0 | O34: 25 | P34: 35 | Q34: 0 | R34: 0 | S34: 0 | U34: 0 | V34: 0
B35: 31 | C35: =INDEX(Прайс!D:D,MATCH(D35,Прайс!B:B,0)) -> 0 | E35: =INDEX(Прайс!$E:$E,MATCH($D35,Прайс!$B:$B,0)) -> 0 | F35: 1 | H35: =INDEX(Прайс!H:H,MATCH(D35,Прайс!B:B,0)) -> 0 | I35: 0 | J35: =INDEX(Прайс!I:I,MATCH(D35,Прайс!B:B,0)) -> 0 | K35: 0 | L35: 0 | M35: 0 | N35: 0 | O35: 25 | P35: 35 | Q35: 0 | R35: 0 | S35: 0 | U35: 0 | V35: 0
B36: 32 | C36: =INDEX(Прайс!D:D,MATCH(D36,Прайс!B:B,0)) -> 0 | E36: =INDEX(Прайс!$E:$E,MATCH($D36,Прайс!$B:$B,0)) -> 0 | H36: =INDEX(Прайс!H:H,MATCH(D36,Прайс!B:B,0)) -> 0 | I36: 0 | J36: =INDEX(Прайс!I:I,MATCH(D36,Прайс!B:B,0)) -> 0 | K36: 0 | L36: 0 | M36: 0 | N36: 0 | O36: 25 | P36: 35 | Q36: 0 | R36: 0 | S36: 0 | U36: 0 | V36: 0
B37: 33 | C37: =INDEX(Прайс!D:D,MATCH(D37,Прайс!B:B,0)) -> 0 | E37: =INDEX(Прайс!$E:$E,MATCH($D37,Прайс!$B:$B,0)) -> 0 | H37: =INDEX(Прайс!H:H,MATCH(D37,Прайс!B:B,0)) -> 0 | I37: 0 | J37: =INDEX(Прайс!I:I,MATCH(D37,Прайс!B:B,0)) -> 0 | K37: 0 | L37: 0 | M37: 0 | N37: =((($D$55*1.18+100)/100)*(($D$56*1.18+100)/100)-1)*100 -> 0 | O37: 25 | P37: 35 | Q37: 0 | R37: 0 | S37: 0 | U37: 0 | V37: 0
B38: 34 | C38: =INDEX(Прайс!D:D,MATCH(D38,Прайс!B:B,0)) -> 0 | E38: =INDEX(Прайс!$E:$E,MATCH($D38,Прайс!$B:$B,0)) -> 0 | F38: 3 | H38: =INDEX(Прайс!H:H,MATCH(D38,Прайс!B:B,0)) -> 0 | I38: 0 | J38: =INDEX(Прайс!I:I,MATCH(D38,Прайс!B:B,0)) -> 0 | K38: 0 | L38: 0 | M38: 0 | N38: 0 | O38: 25 | P38: 35 | Q38: 0 | R38: 0 | S38: 0 | U38: 0 | V38: 0
B39: 35 | C39: =INDEX(Прайс!D:D,MATCH(D39,Прайс!B:B,0)) -> 0 | E39: =INDEX(Прайс!$E:$E,MATCH($D39,Прайс!$B:$B,0)) -> 0 | F39: 3 | H39: =INDEX(Прайс!H:H,MATCH(D39,Прайс!B:B,0)) -> 0 | I39: 0 | J39: =INDEX(Прайс!I:I,MATCH(D39,Прайс!B:B,0)) -> 0 | K39: 0 | L39: 0 | M39: 0 | N39: 0 | O39: 25 | P39: 35 | Q39: 0 | R39: 0 | S39: 0 | U39: 0 | V39: 0
B40: 36 | C40: =INDEX(Прайс!D:D,MATCH(D40,Прайс!B:B,0)) -> 0 | E40: =INDEX(Прайс!$E:$E,MATCH($D40,Прайс!$B:$B,0)) -> 0 | H40: =INDEX(Прайс!H:H,MATCH(D40,Прайс!B:B,0)) -> 0 | I40: 0 | J40: =INDEX(Прайс!I:I,MATCH(D40,Прайс!B:B,0)) -> 0 | K40: 0 | L40: 0 | M40: 0 | N40: 0 | O40: 25 | P40: 35 | Q40: 0 | R40: 0 | S40: 0 | U40: 0 | V40: 0
B41: 37 | C41: =INDEX(Прайс!D:D,MATCH(D41,Прайс!B:B,0)) -> 0 | E41: =INDEX(Прайс!$E:$E,MATCH($D41,Прайс!$B:$B,0)) -> 0 | H41: =INDEX(Прайс!H:H,MATCH(D41,Прайс!B:B,0)) -> 0 | I41: 0 | J41: =INDEX(Прайс!I:I,MATCH(D41,Прайс!B:B,0)) -> 0 | K41: 0 | L41: 0 | M41: 0 | N41: 0 | O41: 25 | P41: 35 | Q41: 0 | R41: 0 | S41: 0 | U41: 0 | V41: 0
B42: 38 | C42: =INDEX(Прайс!D:D,MATCH(D42,Прайс!B:B,0)) -> 0 | E42: =INDEX(Прайс!$E:$E,MATCH($D42,Прайс!$B:$B,0)) -> 0 | H42: =INDEX(Прайс!H:H,MATCH(D42,Прайс!B:B,0)) -> 0 | I42: 0 | J42: =INDEX(Прайс!I:I,MATCH(D42,Прайс!B:B,0)) -> 0 | K42: 0 | L42: 0 | M42: 0 | N42: 0 | O42: 25 | P42: 35 | Q42: 0 | R42: 0 | S42: 0 | U42: 0 | V42: 0
B43: 39 | C43: =INDEX(Прайс!D:D,MATCH(D43,Прайс!B:B,0)) -> 0 | E43: =INDEX(Прайс!$E:$E,MATCH($D43,Прайс!$B:$B,0)) -> 0 | H43: =INDEX(Прайс!H:H,MATCH(D43,Прайс!B:B,0)) -> 0 | I43: 0 | J43: =INDEX(Прайс!I:I,MATCH(D43,Прайс!B:B,0)) -> 0 | K43: 0 | L43: 0 | M43: 0 | N43: 0 | O43: 25 | P43: 35 | Q43: 0 | R43: 0 | S43: 0 | U43: 0 | V43: 0
B44: 40 | C44: =INDEX(Прайс!D:D,MATCH(D44,Прайс!B:B,0)) -> 0 | E44: =INDEX(Прайс!$E:$E,MATCH($D44,Прайс!$B:$B,0)) -> 0 | H44: =INDEX(Прайс!H:H,MATCH(D44,Прайс!B:B,0)) -> 0 | I44: 0 | J44: =INDEX(Прайс!I:I,MATCH(D44,Прайс!B:B,0)) -> 0 | K44: 0 | L44: 0 | M44: 0 | N44: 0 | O44: 25 | P44: 35 | Q44: 0 | R44: 0 | S44: 0 | U44: 0 | V44: 0
B45: 41 | C45: =INDEX(Прайс!D:D,MATCH(D45,Прайс!B:B,0)) -> 0 | E45: =INDEX(Прайс!$E:$E,MATCH($D45,Прайс!$B:$B,0)) -> 0 | H45: =INDEX(Прайс!H:H,MATCH(D45,Прайс!B:B,0)) -> 0 | I45: 0 | J45: =INDEX(Прайс!I:I,MATCH(D45,Прайс!B:B,0)) -> 0 | K45: 0 | L45: 0 | M45: 0 | N45: 0 | O45: 25 | P45: 35 | Q45: 0 | R45: 0 | S45: 0 | U45: 0 | V45: 0
B46: 42 | C46: =INDEX(Прайс!D:D,MATCH(D46,Прайс!B:B,0)) -> 0 | E46: =INDEX(Прайс!$E:$E,MATCH($D46,Прайс!$B:$B,0)) -> 0 | H46: =INDEX(Прайс!H:H,MATCH(D46,Прайс!B:B,0)) -> 0 | I46: 0 | J46: =INDEX(Прайс!I:I,MATCH(D46,Прайс!B:B,0)) -> 0 | K46: 0 | L46: 0 | M46: 0 | N46: 0 | O46: 25 | P46: 35 | Q46: 0 | R46: 0 | S46: 0 | U46: 0 | V46: 0
B47: 43 | C47: =INDEX(Прайс!D:D,MATCH(D47,Прайс!B:B,0)) -> 0 | E47: =INDEX(Прайс!$E:$E,MATCH($D47,Прайс!$B:$B,0)) -> 0 | H47: =INDEX(Прайс!H:H,MATCH(D47,Прайс!B:B,0)) -> 0 | I47: 0 | J47: =INDEX(Прайс!I:I,MATCH(D47,Прайс!B:B,0)) -> 0 | K47: 0 | L47: 0 | M47: 0 | N47: 0 | O47: 25 | P47: 35 | Q47: 0 | R47: 0 | S47: 0 | U47: 0 | V47: 0
B48: 44 | C48: =INDEX(Прайс!D:D,MATCH(D48,Прайс!B:B,0)) -> 0 | E48: =INDEX(Прайс!$E:$E,MATCH($D48,Прайс!$B:$B,0)) -> 0 | H48: =INDEX(Прайс!H:H,MATCH(D48,Прайс!B:B,0)) -> 0 | I48: 0 | J48: =INDEX(Прайс!I:I,MATCH(D48,Прайс!B:B,0)) -> 0 | K48: 0 | L48: 0 | M48: 0 | N48: 0 | O48: 25 | P48: 35 | Q48: 0 | R48: 0 | S48: 0 | U48: 0 | V48: 0
B49: 45 | C49: =INDEX(Прайс!D:D,MATCH(D49,Прайс!B:B,0)) -> 0 | E49: =INDEX(Прайс!$E:$E,MATCH($D49,Прайс!$B:$B,0)) -> 0 | H49: =INDEX(Прайс!H:H,MATCH(D49,Прайс!B:B,0)) -> 0 | I49: 0 | J49: =INDEX(Прайс!I:I,MATCH(D49,Прайс!B:B,0)) -> 0 | K49: 0 | L49: 0 | M49: 0 | N49: 0 | O49: 25 | P49: 35 | Q49: 0 | R49: 0 | S49: 0 | U49: 0 | V49: 0
B50: 46 | C50: =INDEX(Прайс!D:D,MATCH(D50,Прайс!B:B,0)) -> 0 | E50: =INDEX(Прайс!$E:$E,MATCH($D50,Прайс!$B:$B,0)) -> 0 | H50: =INDEX(Прайс!H:H,MATCH(D50,Прайс!B:B,0)) -> 0 | I50: 0 | J50: =INDEX(Прайс!I:I,MATCH(D50,Прайс!B:B,0)) -> 0 | K50: 0 | L50: 0 | M50: 0 | N50: 0 | O50: 25 | P50: 35 | Q50: 0 | R50: 0 | S50: 0 | U50: 0 | V50: 0
B51: 47 | C51: =INDEX(Прайс!D:D,MATCH(D51,Прайс!B:B,0)) -> Маркировка - 1шт./ | D51: Маркировка | E51: =INDEX(Прайс!$E:$E,MATCH($D51,Прайс!$B:$B,0)) -> 0 | H51: =INDEX(Прайс!H:H,MATCH(D51,Прайс!B:B,0)) -> 100 | I51: 7000 | J51: =INDEX(Прайс!I:I,MATCH(D51,Прайс!B:B,0)) -> 0 | K51: 0 | L51: 8260 | M51: 0 | N51: 0 | O51: 25 | P51: 35 | Q51: 9450 | R51: 11151 | S51: 0 | U51: 0 | V51: 0
B52: 48 | C52: =INDEX(Прайс!D:D,MATCH(D52,Прайс!B:B,0)) -> Провода неопределенны - 1м/ | D52: Провода | E52: =INDEX(Прайс!$E:$E,MATCH($D52,Прайс!$B:$B,0)) -> 0 | H52: =INDEX(Прайс!H:H,MATCH(D52,Прайс!B:B,0)) -> 100 | I52: 7000 | J52: =INDEX(Прайс!I:I,MATCH(D52,Прайс!B:B,0)) -> 0 | K52: 0 | L52: 8260 | M52: 0 | N52: 0 | O52: 25 | P52: 35 | Q52: 9450 | R52: 11151 | S52: 0 | U52: 0 | V52: 0
C53: =INDEX(Прайс!D:D,MATCH(D53,Прайс!B:B,0)) -> Монтажный материал | D53: Монтаж | E53: =INDEX(Прайс!$E:$E,MATCH($D53,Прайс!$B:$B,0)) -> 0 | H53: =INDEX(Прайс!H:H,MATCH(D53,Прайс!B:B,0)) -> 100 | I53: =H53*$H$4 -> 7000 | J53: =INDEX(Прайс!I:I,MATCH(D53,Прайс!B:B,0)) -> 0 | K53: 0 | L53: =CEILING(CEILING(I53*(100-J53)/100,0.01)*1.18,0.01) -> 8260 | M53: =L53*F53 -> 0 | N53: 0 | O53: 25 | P53: =O53+N53+$O$1 -> 35 | Q53: =CEILING(((100+P53)/100*I53)*((100-J53)/100),0.01) -> 9450 | R53: =CEILING(Q53*1.18,0.01) -> 11151 | S53: =R53*F53 -> 0 | U53: 0 | V53: 0
B54: =B52+1 -> 49 | C54: =INDEX(Прайс!D:D,MATCH(D54,Прайс!B:B,0)) -> Шильдики | D54: Шильдики | E54: =INDEX(Прайс!$E:$E,MATCH($D54,Прайс!$B:$B,0)) -> 0 | H54: =INDEX(Прайс!H:H,MATCH(D54,Прайс!B:B,0)) -> 100 | I54: 7000 | J54: =INDEX(Прайс!I:I,MATCH(D54,Прайс!B:B,0)) -> 0 | K54: 0 | L54: 8260 | M54: 0 | N54: 0 | O54: 25 | P54: 35 | Q54: 9450 | R54: 11151 | S54: 0 | U54: 0 | V54: 0
B55: 50 | C55: Запас, % | D55: 0 | M55: =CEILING(CEILING(SUM(M5:M54)*D55/100,0.01)*1.18,0.01) -> 0
B56: 51 | C56: Остальное, % | D56: 0 | M56: =CEILING(CEILING(SUM(M5:M55)*D56/100,0.01)*1.18,0.01) -> 0
B57: 52 | C57: Сборочные работы ( при распределении в стоимость компонентов) | H57: 5000 | I57: =D57*H57 -> 0 | L57: =SUM(I57:I61) -> 0
B58: 53 | C58: Пачка бумаги ( для комплекта документации) + папка | H58: 1500 | I58: =H58*D58 -> 0 | N58: =SUM(M5:M55) -> 433068.91
B59: 54 | C59: ТЗР ( транспортно-заготовительные расходы) | H59: 5000 | I59: =H59*D59 -> 0 | N59: =L57/N58 -> 0
B60: 55 | C60: Прокатило 1 | H60: 30000 | I60: =H60*D60 -> 0
B61: 56 | C61: Прокатило 2 | H61: 15000 | I61: =H61*D61 -> 0
B62: 57 | C62: Разработка КП | I62: 6800 | L62: =CEILING(I62*1.18*(100-J62)/100,0.01) -> 8024 | M62: =CEILING(L62*D62,0.01) -> 0 | Q62: =CEILING(((100+P62)/100*I62)*((100-J62)/100)*((100+$O$1+$O$4)/100),0.01) -> 9180 | R62: =CEILING(Q62*1.18,0.01) -> 10832.4 | S62: =R62*D62 -> 0 | U62: =S62+S64+S66+S65+S70+S74 -> 0
B63: 58 | C63: Разработка ТЗ | I63: 6800 | L63: =CEILING(I63*1.18*(100-J63)/100,0.01) -> 8024 | M63: =CEILING(L63*D63,0.01) -> 0 | Q63: =CEILING(((100+P63)/100*I63)*((100-J63)/100)*((100+$O$1+$O$4)/100),0.01) -> 9180 | R63: =CEILING(Q63*1.18,0.01) -> 10832.4 | S63: =R63*D63 -> 0
B64: 59 | C64: Разработка технической документации | I64: 6800 | L64: =CEILING(I64*1.18*(100-J64)/100,0.01) -> 8024 | M64: =CEILING(L64*D64,0.01) -> 0 | Q64: =CEILING(((100+P64)/100*I64)*((100-J64)/100)*((100+$O$1+$O$4)/100),0.01) -> 9180 | R64: =CEILING(Q64*1.18,0.01) -> 10832.4 | S64: =R64*D64 -> 0
B65: 60 | C65: Разработка программного обеспечения | I65: 6800 | L65: =CEILING(I65*1.18*(100-J65)/100,0.01) -> 8024 | M65: =CEILING(L65*D65,0.01) -> 0 | Q65: =CEILING(((100+P65)/100*I65)*((100-J65)/100)*((100+$O$1+$O$4)/100),0.01) -> 9180 | R65: =CEILING(Q65*1.18,0.01) -> 10832.4 | S65: =R65*D65 -> 0
B66: 61 | C66: Сборочные работы (ШУ) | H66: 1 | I66: 6800 | L66: =CEILING(I66*1.18*(100-J66)/100,0.01) -> 8024 | M66: =CEILING(I66*D66*H66,0.01) -> 0 | Q66: =CEILING(((100+P66)/100*I66)*((100-J66)/100)*((100+$O$1+$O$4)/100),0.01) -> 9180 | R66: =CEILING(Q66*1.18,0.01) -> 10832.4 | S66: =R66*D66*H66 -> 0
B67: 62 | C67: Транспортно - персональные, км | H67: 1 | I67: 11 | M67: =CEILING(I67*D67*H67,0.01) -> 0 | Q67: =I67 -> 11 | S67: =Q67*D67 -> 0
B68: 63 | C68: Командировочные | H68: 1 | I68: 700 | M68: 0 | Q68: =I68 -> 700 | S68: =Q68*D68 -> 0
B69: 64 | C69: Гостиница | H69: 1 | I69: 2500 | M69: 0 | Q69: =I69 -> 2500 | S69: =Q69*D69 -> 0
B70: 65 | C70: Пуско-наладка | H70: 1 | I70: 6800 | L70: =CEILING(I70*1.18*(100-J70)/100,0.01) -> 8024 | M70: 0 | Q70: =CEILING(((100+P70)/100*I70)*((100-J70)/100)*((100+$O$1+$O$4)/100),0.01) -> 9180 | R70: =CEILING(Q70*1.18,0.01) -> 10832.4 | S70: =R70*D70*H70 -> 0
B71: 66 | C71: Транспортно - персональные, км | H71: 1 | I71: 11 | M71: =CEILING(I71*D71*H71,0.01) -> 0 | Q71: =I71 -> 11 | S71: =Q71*D71 -> 0
B72: 67 | C72: Командировочные | H72: 1 | I72: 700 | M72: 0 | Q72: =I72 -> 700 | S72: =Q72*D72 -> 0
B73: 68 | C73: Гостиница | H73: 1 | I73: 500 | M73: 0 | Q73: =I73 -> 500 | S73: =Q73*D73 -> 0
B74: 69 | C74: Командировка -разведка | H74: 1 | I74: 6800 | L74: =CEILING(I74*1.18*(100-J74)/100,0.01) -> 8024 | M74: 0 | Q74: =CEILING(((100+P74)/100*I74)*((100-J74)/100)*((100+$O$1+$O$4)/100),0.01) -> 9180 | R74: =CEILING(Q74*1.18,0.01) -> 10832.4 | S74: =R74*D74*H74 -> 0
B75: 70 | C75: Транспортно - персональные, км | H75: 1 | I75: 11 | M75: 0 | Q75: =I75 -> 11 | S75: =Q75*D75 -> 0
B76: 71 | C76: Командировочные | H76: 1 | I76: 700 | M76: 0 | Q76: =I76 -> 700 | S76: =Q76*D76 -> 0
B77: =B76+1 -> 72 | C77: Гостиница | H77: 1 | I77: 2000 | L77: =CEILING(I77*1.18*(100-J77)/100,0.01) -> 2360 | M77: 0 | Q77: =I77 -> 2000 | S77: =Q77*D77 -> 0
B78: 73 | D78: ДНЕЙ | H78: СОТРУДНИКОВ

Sheet Прайс
B1: 0 | C1: 0 | D1: 0 | E1: 0 | F1: 0 | G1: 0 | H1: 0 | I1: 0
A2: Price list 1.0 | C2: действ. с 25.11.2014
A3: Изменения | B3: Артикул | C3: Описание | D3: Описание русское | E3: Производитель | F3: Кол-во в упаковке | G3: Ед. измерения | H3: Наша цена евро, без НДС | I3: Скидка, % | J3: Цена в рублях, без НДС | K3: Наша цена в долларах, без НДС | L3: Тип продукции | M3: Группа продукции | N3: EAN/UPC-Code (штрих код) | O3: брутто в кг | P3: нетто в кг | Q3: объем в куб.дм | R3: ширина | S3: высота | T3: глубина | U3: Страница в каталоге | V3: Размеры | W3: Product Lifecycle Management / производится до: | X3: альтернативный артикул
B4: =Провода!B1 -> Провода | D4: =Провода!C55 -> Провода неопределенны - 1м/ | H4: =Провода!K4 -> 100
B5: Кабеля
B6: =Маркировка!B1 -> Маркировка | D6: =Маркировка!C55 -> Маркировка - 1шт./ | H6: =Маркировка!K4 -> 100
B7: Монтаж | D7: Монтажный материал | H7: 100
B8: Шильдики | D8: Шильдики | H8: 100
B9: Непредвиденное | D9: Непредвиденное | H9: 100
B10: FRN 18.5 G1E-4E | D10: Преобразователь частоты, 380-480В (3 фазы) серия G1/ 18,50кВт/39.0-45.0А, управление с ОС, БВУ, динамический векторный контроль и ВЧХ, IP20,тормозное устройство, ЕМС фильтр, без пульта управления | E10: Fuji | H10: 1909.0536
B11: 5E1500iUSB | D11: ИБП 5E 1500i USB (1500ВА/900Вт) Eaton | E11: Eaton | H11: 500
B12: 5E850iUSB | D12: ИБП Eaton 5E 850i USB (850ВА/480Вт) | E12: Eaton | H12: 234
B13: А0000013901 | D13: ИБП Eaton, Powerware 9130 700 700VA/630W, 230V, On-Line, Hot Swap User Replaceable Batteries, ЖК- дисплей с отображением параметров и измерений ИБП, Serial port RJ45+USB + разъем для подключения SNMP /WEB карт, Eaton Software Suite,in IEC320 /10A, out 6*IEC320 /10A, разъем для подключения внешнего батарейного модуля. Парт. номер: 103006433-6591 | E13: Eaton | H13: 318
B14: DR-45-24 | D14: Блок питания 24В 2A Mean Well DR-45-24 | E14: MeanWell | H14: 20
B15: DR-120-24 | D15: Блок питания 24В 5A Mean Well DR-120-24 | E15: MeanWell | H15: 30
B16: DR-240-24 | D16: Блок питания 24В 10A Mean Well DR-240-24 | E16: MeanWell | H16: 50
B17: APC BK650 | D17: Источник б.п. UPS APC BK 650EI 650VA Complete System Protection | E17: ShinderElectric | H17: 90
B18: 00.F5.060-3000 | D18: Пульты оператора предназначены для иcпользования с преобразователями частоты KEB серии F5. Расширяют возможности управления преобразователем частоты посредством различных интерфейсов и протоколов обмена данными. | E18: KEB | H18: 192.3
B19: МЗМ-1 | D19: МЗМ-1 звонок громкого боя на переменном токе 220В | H19: 10
A23: ШНЭЛС
B24: 6ES7214-1AG40-0XB0 | D24: SIMATIC S7-1200, КОМПАКТНОЕ ЦПУ CPU 1214C DC/DC/DC, ВСТРОЕННЫЕ ВХОДЫ/ВЫХОДЫ: 14 DI =24 В; 10 DO =24 В; 2 AI =0 - 10 В, БЛОК ПИТАНИЯ: =20.4 - 28.8 В, ПАМЯТЬ ПРОГРАММЫ/ДАННЫХ: 75 КБ | E24: Siemens | H24: 234.29
B25: 6ES7221-1BF32-0XB0 | D25: SIMATIC S7-1200, МОДУЛЬ ДИСКРЕТНОГО ВВОДА SM 1221, 8DI, =24 В, ВХОДЫ SINK/SOURCE | E25: Siemens | H25: 67.74
B26: 6ES7241-1CH32-0XB0 | D26: SIMATIC S7-1200, КОММУНИКАЦИОННЫЙ МОДУЛЬ CM 1241, RS422/485, 9-ПОЛЮСНЫЙ РАЗЪЁМ SUB D (ВИЛКА), СВОБОДНО-ПРОГРАММИРУЕМЫЙ ПОРТ С ПОДДЕРЖКОЙ ТЕЛЕГРАММ | E26: Siemens | H26: 79.35
B27: 3RT1276-6AP36 | D27: ВАКУУМНЫЙ КОНТАКТОР, 250КВТ/400V/AC-3, AC/DC-НОМИНАЛЬНОЕ ПИТАЮЩЕЕ НАПРЯЖЕНИЕ УПРАВЛЕНИЯ 220-240В UCБЛОК-КОНТАКТЫ 2НО+2НЗ 3-Х ПОЛЮСНЫЙ, ТИПОРАЗМЕР S12 ШИННОЕ ПРИСОЕДИНЕНИЕ ПРИВОД: ОБЫЧНЫЙ | E27: Siemens | H27: 1269.07
B28: 3RT1076-6AP36 | D28: КОНТАКТОР 250КВТ/400V/AC-3, AC/DC-НОМИНАЛЬНОЕ ПИТАЮЩЕЕ НАПРЯЖЕНИЕ УПРАВЛЕНИЯ 220-240В UCБЛОК-КОНТАКТЫ 2НО+2НЗ 3-Х ПОЛЮСНЫЙ, ТИПОРАЗМЕР S12 ШИННОЕ ПРИСОЕДИНЕНИЕ ПРИВОД: ОБЫЧНЫЙ | E28: Siemens | H28: 916.97
B29: 3VT1706-2DB36-0AA0 | D29: АВТОМАТИЧЕСКИЙ ВЫКЛЮЧАТЕЛЬ 3VT1 СТАНДАРТНАЯ ОТКЛ. СПОСОБНОСТЬ ICU=25KA, 415V AC 3-ПОЛ.; STARTER COMBINATION РАСЦЕПИТЕЛЬ TM, LIN IN= 63A RATED CURRENT II= 315... 630A, SHORT-CIRCUIT PROTECTION W/O AUXILIARY TRIP UNIT W/O AUXILIARY/ALARM SWITCH WITHOUT AUXIL | E29: Siemens | H29: 53.67
B30: 3KD5230-0RE10-0 | D30: ВЫКЛЮЧАТЕЛЬ-РАЗЪЕДИНИТЕЛЬ 1250A, ТР.5, 3-ПОЛ ФРОНТ.УПР. СЛЕВА БАЗ.БЛОК БЕЗ РУЧКИ ПЛОСКИЕ КЛЕММЫ | E30: Siemens | H30: 743.12
B31: 3VT9363-6AS00 | D31: РАСЦЕПИТЕЛЬ МАКС.ТОКА ЭЛЕКТР. VT630 3-ПОЛ.,MOTOR/TRANSF. PROTECT. ETU MPS, LI IR= 250... 630A, OVERLOAD PROTECTION IRM= 3... 9KA SHORT-CIRCUIT PROTECTION, SCREW TERMINAL CONNECTIONS IN SCOPE OF SUPPLY OF SWITCHING UNIT | E31: Siemens | H31: 300.33
B32: 3VT3763-2AA36-0AA0 | D32: АВТОМАТИЧЕСКИЙ ВЫКЛЮЧАТЕЛЬ 3VT3 СТАНДАРТНАЯ ОТКЛ. СПОСОБНОСТЬ ICU=36KA, 415V AC 3-ПОЛ.; АВТОМАТИЧЕСКИЙ ВЫКЛЮЧАТЕЛЬ W/O ELECTRONIC TRIP UNIT W/O AUXILIARY TRIP UNIT W/O AUXILIARY/ALARM SWITCH WITHOUT AUXILIARY RELEASE WITHOUT AUXILIARY/ALARM SWITCH OHNE HIL | E32: Siemens | H32: 241.1

Sheet Провода
B1: Провода | G1: =TODAY() -> 2015-03-30 | H1: 2015-02-10 | I1: Цена без НДС
B2: № п/п | C2: Наименование, марка провода | D2: Цвет | E2: Артикул | F2: Производитель | G2: Склад, м | H2: Заказ, м | I2: EUR/USD | J2: ='Рабочий лист'!I2 -> 1.148819 | K2: Сумма | L2: Сумма
I3: EURO | J3: РУБЛЬ | K3: EURO | L3: РУБЛЬ
I4: ='Рабочий лист'!H4 -> 70 | K4: =SUM(K5:K54) -> 100 | L4: =SUM(L5:L54) -> 7000
B5: 1 | C5: Провода неопределенны | G5: 1 | H5: 1 | I5: 100 | J5: =$I$4*I5 -> 7000 | K5: =H5*I5 -> 100 | L5: =H5*J5 -> 7000 | N5: =IF(H5<>0,CONCATENATE(C5," ",TEXT(D5,0)," - ",TEXT(H5,0),"м","/ "),"") -> Провода неопределенны - 1м/ | O5: =IF(AND(H5<>0,F5<>0),CONCATENATE(F5,"/ "),"") -> 
B6: =1+B5 -> 2 | C6: ПВЗ, 1х0,75 | D6: PE | F6: КирсКабель | G6: 650 | I6: 0.2 | J6: =$I$4*I6 -> 14 | K6: =H6*I6 -> 0 | L6: =H6*J6 -> 0 | N6: =IF(H6<>0,CONCATENATE(C6," ",TEXT(D6,0)," - ",TEXT(H6,0),"м","/ "),"") ->  | O6: =IF(AND(H6<>0,F6<>0),CONCATENATE(F6,"/ "),"") -> 
B7: =1+B6 -> 3 | C7: ПВ3, 1х2,5 | D7: PE | F7: ОкуловкаКабель | G7: 250 | I7: 0.2 | J7: =$I$4*I7 -> 14 | K7: 0 | L7: 0 | N7: =IF(H7<>0,CONCATENATE(C7," ",TEXT(D7,0)," - ",TEXT(H7,0),"м","/ "),"") ->  | O7: =IF(AND(H7<>0,F7<>0),CONCATENATE(F7,"/ "),"") -> 
B8: =1+B7 -> 4 | C8: ПВ3, 1х4 | D8: PE | G8: 150 | I8: 0.2 | J8: 14 | K8: 0 | L8: 0 | N8: =IF(H8<>0,CONCATENATE(C8," ",TEXT(D8,0)," - ",TEXT(H8,0),"м","/ "),"") -> 
B9: 5 | C9: ПуГВ, 1х10 | D9: PE | G9: 100 | I9: 0.2 | J9: 14 | K9: 0 | L9: 0
B10: =1+B9 -> 6 | C10: (луженый) 1х0,5 | D10: белый | G10: 500 | I10: 0.2 | J10: 14 | K10: 0 | L10: 0
B11: 7 | C11: ПВЗ, 1х0,75 | D11: белый | G11: 1100 | I11: 0.2 | J11: 14 | K11: 0 | L11: 0
B12: 8 | C12: ПВСЗ, 1х1,5 | D12: белый | G12: 550 | I12: 0.2 | J12: 14 | K12: 0 | L12: 0
B13: 9 | C13: ПВ3, 1х2,5 | D13: белый | G13: 300 | I13: 0.2 | J13: 14 | K13: 0 | L13: 0
B14: 10 | C14: ПВ3, 1х4 | D14: белый | G14: 570 | I14: 0.2 | J14: 14 | K14: 0 | L14: 0
B15: 11 | C15: ПуГВ, 1х10 | D15: белый | G15: 200 | I15: 0.2 | J15: 14 | K15: 0 | L15: 0
B16: 12 | C16: ПуГВ, 1х16 | D16: белый | G16: 15 | I16: 0.2 | J16: 14 | K16: 0 | L16: 0
B17: 13 | C17: ПВЗ, 1х0,75 | D17: синий | G17: 2250 | I17: 0.2 | J17: 14 | K17: 0 | L17: 0
B18: 14 | C18: ПВ3, 1х2,5 | D18: синий | G18: 300 | I18: 0.2 | J18: 14 | K18: 0 | L18: 0
B19: 15 | C19: ПВ3, 1х4 | D19: синий | G19: 200 | I19: 0.2 | J19: 14 | K19: 0 | L19: 0
B20: 16 | C20: ПуГВ, 1х10 | D20: синий | G20: 100 | I20: 0.2 | J20: 14 | K20: 0 | L20: 0
B21: 17 | C21: ПВЗ, 1х0,75 | D21: оранжевый | G21: 2700 | I21: 0.2 | J21: 14 | K21: 0 | L21: 0
B22: 18 | C22: ПВ3, 1х4 | D22: красный | G22: 100 | I22: 0.2 | J22: 14 | K22: 0 | L22: 0
B23: 19 | C23: ПВЗ, 1х0,75 | D23: коричневый | G23: 600 | I23: 0.2 | J23: 14 | K23: 0 | L23: 0
B24: 20 | C24: ПВЗ, 1х0,75 | D24: черный | G24: 1000 | K24: 0 | L24: 0
B25: 21 | K25: 0 | L25: 0
B26: 22 | K26: 0 | L26: 0
B27: 23 | K27: 0 | L27: 0
B28: 24 | K28: 0 | L28: 0
B29: 25 | K29: 0 | L29: 0
B30: 26 | K30: 0 | L30: 0
B31: 27 | K31: 0 | L31: 0
B32: 28 | K32: 0 | L32: 0
B33: 29 | K33: 0 | L33: 0
B34: 30 | K34: 0 | L34: 0
B35: 31 | K35: 0 | L35: 0
B36: 32 | K36: 0 | L36: 0
B37: 33 | K37: 0 | L37: 0
B38: 34 | K38: 0 | L38: 0
B39: 35 | K39: 0 | L39: 0
B40: 36 | K40: 0 | L40: 0
B41: 37 | K41: 0 | L41: 0
B42: 38 | K42: 0 | L42: 0
B43: 39 | K43: 0 | L43: 0
B44: 40 | K44: 0 | L44: 0
B45: 41 | K45: 0 | L45: 0
B46: 42 | K46: 0 | L46: 0
B47: 43 | K47: 0 | L47: 0
B48: 44 | K48: 0 | L48: 0
B49: 45 | K49: 0 | L49: 0
B50: 46 | K50: 0 | L50: 0
B51: 47 | K51: 0 | L51: 0
B52: 48 | K52: 0 | L52: 0
B53: 49 | K53: 0 | L53: 0
B54: 50 | K54: 0 | L54: 0
C55: =CONCATENATE(N5,N6,N7,N8,N9,N10,N11,N12,N13,N14,N15,N16,N17,N18,N19,N20,N21,N22,N23,N24,N25,N26,N27,N28,N29,N30,N31,N32,N33,N34,N35,N36,N37,N38,N39,N40,N41,N42,N43,N44,N45,N46,N47,N48,N49,N50,N51,N52,N53,N54) -> Провода неопределенны - 1м/
C56: =CONCATENATE(F5,F6,F7,F8,F9,F10,F11,F12,F13,F14,F15,F16,F17,F18,F19,F20,F21,F22,F23,F24,F25,F26,F27,F28,F29,F30,F31,F32,F33,F34,F35,F36,F37,F38,F39,F40,F41,F42,F43,F44,F45,F46,F47,F48,F49,F50,F51,F52,F53,F54,F55) -> КирсКабельОкуловкаКабель

Sheet Маркировка
B1: Маркировка | G1: =TODAY() -> 2015-03-30 | H1: 2015-02-10 | I1: Цена без НДС
B2: № п/п | C2: Наименование, марка провода | D2: Цвет | E2: Артикул | F2: Производитель | G2: Склад, м | H2: Заказ, м | I2: EUR/USD | J2: ='Рабочий лист'!I2 -> 1.148819 | K2: Сумма | L2: Сумма
I3: EURO | J3: РУБЛЬ | K3: EURO | L3: РУБЛЬ
I4: ='Рабочий лист'!H4 -> 70 | K4: =SUM(K5:K54) -> 100 | L4: =SUM(L5:L54) -> 7000
B5: 1 | C5: Маркировка | D5: неизвестна | G5: 1 | H5: 1 | I5: 100 | J5: =$I$4*I5 -> 7000 | K5: =H5*I5 -> 100 | L5: =H5*J5 -> 7000 | N5: =IF(H5<>0,CONCATENATE(TEXT(C5,0)," "," - ",TEXT(H5,0),"шт.","/ "),"") -> Маркировка - 1шт./
B6: =1+B5 -> 2 | C6: 0 | G6: 200 | I6: 0.004 | J6: =$I$4*I6 -> 0.28 | K6: =H6*I6 -> 0 | L6: =H6*J6 -> 0 | N6: =IF(H6<>0,CONCATENATE(TEXT(C6,0)," "," - ",TEXT(H6,0),"шт.","/ "),"") -> 
B7: =1+B6 -> 3 | C7: 1 | G7: 200 | I7: 0.004 | J7: =$I$4*I7 -> 0.28 | K7: 0 | L7: 0 | N7: =IF(H7<>0,CONCATENATE(TEXT(C7,0)," "," - ",TEXT(H7,0),"шт.","/ "),"") -> 
B8: =1+B7 -> 4 | C8: 2 | G8: 200 | I8: 0.004 | J8: 0.28 | K8: 0 | L8: 0
B9: 5 | C9: 3 | G9: 200 | I9: 0.004 | J9: 0.28 | K9: 0 | L9: 0
B10: 6 | C10: 4 | G10: 200 | I10: 0.004 | J10: 0.28 | K10: 0 | L10: 0
B11: 7 | C11: 5 | G11: 200 | I11: 0.004 | J11: 0.28 | K11: 0 | L11: 0
B12: 8 | C12: 6 | G12: 200 | I12: 0.004 | J12: 0.28 | K12: 0 | L12: 0
B13: 9 | C13: 7 | G13: 200 | I13: 0.004 | J13: 0.28 | K13: 0 | L13: 0
B14: 10 | C14: 8 | G14: 200 | I14: 0.004 | J14: 0.28 | K14: 0 | L14: 0
B15: 11 | C15: 9 | G15: 200 | I15: 0.004 | J15: 0.28 | K15: 0 | L15: 0
B16: 12 | C16: A | G16: 200 | I16: 0.004 | J16: 0.28 | K16: 0 | L16: 0
B17: 13 | C17: B | G17: 200 | I17: 0.004 | J17: 0.28 | K17: 0 | L17: 0
B18: 14 | C18: C | G18: 200 | I18: 0.004 | J18: 0.28 | K18: 0 | L18: 0
B19: 15 | C19: PE | G19: 200 | I19: 0.004 | J19: 0.28 | K19: 0 | L19: 0
B20: 16 | C20: N | G20: 200 | I20: 0.004 | J20: 0.28 | K20: 0 | L20: 0
B21: 17 | J21: 0 | K21: 0 | L21: 0
B22: 18 | J22: 0 | K22: 0 | L22: 0
B23: 19 | J23: 0 | K23: 0 | L23: 0
B24: 20 | K24: 0 | L24: 0
B25: 21 | K25: 0 | L25: 0
B26: 22 | K26: 0 | L26: 0
B27: 23 | K27: 0 | L27: 0
B28: 24 | K28: 0 | L28: 0
B29: 25 | K29: 0 | L29: 0
B30: 26 | K30: 0 | L30: 0
B31: 27 | K31: 0 | L31: 0
B32: 28 | K32: 0 | L32: 0
B33: 29 | K33: 0 | L33: 0
B34: 30 | K34: 0 | L34: 0
B35: 31 | K35: 0 | L35: 0
B36: 32 | K36: 0 | L36: 0
B37: 33 | K37: 0 | L37: 0
B38: 34 | K38: 0 | L38: 0
B39: 35 | K39: 0 | L39: 0
B40: 36 | K40: 0 | L40: 0
B41: 37 | K41: 0 | L41: 0
B42: 38 | K42: 0 | L42: 0
B43: 39 | K43: 0 | L43: 0
B44: 40 | K44: 0 | L44: 0
B45: 41 | K45: 0 | L45: 0
B46: 42 | K46: 0 | L46: 0
B47: 43 | K47: 0 | L47: 0
B48: 44 | K48: 0 | L48: 0
B49: 45 | K49: 0 | L49: 0
B50: 46 | K50: 0 | L50: 0
B51: 47 | K51: 0 | L51: 0
B52: 48 | K52: 0 | L52: 0
B53: 49 | K53: 0 | L53: 0
B54: 50 | K54: 0 | L54: 0
C55: =CONCATENATE(N5,N6,N7,N8,N9,N10,N11,N12,N13,N14,N15,N16,N17,N18,N19,N20,N21,N22,N23,N24,N25,N26,N27,N28,N29,N30,N31,N32,N33,N34,N35,N36,N37,N38,N39,N40,N41,N42,N43,N44,N45,N46,N47,N48,N49,N50,N51,N52,N53,N54) -> Маркировка - 1шт./
C56: =CONCATENATE(F5,F6,F7,F8,F9,F10,F11,F12,F13,F14,F15,F16,F17,F18,F19,F20,F21,F22,F23,F24,F25,F26,F27,F28,F29,F30,F31,F32,F33,F34,F35,F36,F37,F38,F39,F40,F41,F42,F43,F44,F45,F46,F47,F48,F49,F50,F51,F52,F53,F54,F55) -> 

Sheet t
A1: Заработная плата | B1: руб, на руки | C1: штат
A2: директор | B2: 40000 | C2: 1
A3: заместитель директора | B3: 40000 | C3: 0
A4: бухгалтер | B4: 40000 | C4: 1
A5: старший инженер | B5: 40000 | C5: 0 | D5: =CEILING((B5*(1+B22)*(1+B13)*(1+B14)*(1+B15))/B10,50) -> 5600 | E5: =D5*1.18 -> 6608
A6: инженер | B6: 35000 | C6: 4 | D6: =CEILING((B6*(1+$B$13)*(1+$B$14)/$B$10)*(1+B$22)*(1+$B$15),50) -> 4900 | E6: =D6*1.18 -> 5782
A7: монтажник | B7: 35000 | C7: 0 | D7: =CEILING((B7*(1+$B$13)*(1+$B$14)/$B$10)*(1+B$22)*(1+$B$15),50) -> 4900 | E7: =D7*1.18 -> 5782
A8: Аренда | B8: 20000
A9: командировки | B9: 10000 | C9: =C7+C6+C5 -> 4 | D9: фактический Штат инж-монт
A10: рабочих дней в месяце | B10: 22
A11: расчетный период, месяцев | B11: 1
A12: управленческий корпус, руб | B12: =CEILING(B11*(B2*C2+B3*C3+B4*C4+B8+B9),0.001) -> 110000
A13: налоговые и пенсионные отчисления | B13: 0.36
A14: тариф банка по зарпл. проекту | B14: 0.007
A15: коэффициент запаса | B15: 0.2
A16: база расчетов (фот инженеров-монтажников без налогов и банка) | B16: =(B5*C5+B6*C6+B7*C7) -> 140000
A17: Человеко-дни (инженеры-монтажники) | B17: =C9*B10 -> 88
A18: Месяц-компани | B18: =CEILING(B17/B10/C9,0.001) -> 1
A19: управленческие расходы на период, руб | B19: =B18*B12 -> 110000
A20: управленческие расходы на период, % | B20: =B19/B16 -> 0.7857142857
A21: на развитие, % от упр. Расх | B21: 0.1 | D21: =B21*B19 -> 11000
A22: управл. Расходы + развитие % | B22: =B20*(1+B21) -> 0.8642857143

Sheet b
A1: Рентабельность | B1: Брутто ( с НДС) | C1: без НДС
A2: всего проект | B2: ='Рабочий лист'!S4 -> 584641.44
A3: оборудование | B3: ='Рабочий лист'!P2 -> 108267.2275 | C3: =B3/1.18 -> 91751.88771 | D3: ='Рабочий лист'!O2 -> 25
A4: работы | B4: ='Рабочий лист'!P4 -> 108267.2275 | C4: 91751.88771 | D4: ='Рабочий лист'!O4 -> 25
A5: коэффициент запаса | B5: ='Рабочий лист'!P1 -> 86613.782 | C5: 73401.51017 | D5: ='Рабочий лист'!O1 -> 10
A6: суммарно | B6: =B5+B4+B3 -> 303148.237 | C6: 256905.2856
A7: ФОТ | B7: ='Рабочий лист'!M1 -> 433068.91 | C7: 367007.5508
A8: управл расходы | B8: =B10*t!B19 -> 6553687.5 | C8: 5553972.458
A9: запас на развитие | B9: =t!B21*B8 -> 655368.75 | C9: 555397.2458
A10: Месяц-компани | B10: ='Рабочий лист'!L1/t!B10/t!C9 -> 59.57897727
A11: Человеко-дней | B11: ='Рабочий лист'!L1 -> 5242.95
